[Event "*** Titled Tuesday Blitz"]
[Site "Chess.com"]
[Date "2020.05.26"]
[Round "7"]
[White "chessdjw"]
[Black "Paralinch"]
[Result "1/2-1/2"]
[WhiteElo "2718"]
[BlackElo "2873"]
[TimeControl "180+1"]
[EndTime "11:23:15 PDT"]
[Termination "Game drawn - insufficient material"]

1. e4 {[%clk 0:03:00.9]} 1... c5 {[%clk 0:03:00.1]} 2. Nf3 {[%clk 0:03:00.8]}
2... e6 {[%clk 0:03:00.6]} 3. d4 {[%clk 0:03:00.1]} 3... cxd4 {[%clk 0:03:01.5]}
4. Nxd4 {[%clk 0:03:00.5]} 4... Nf6 {[%clk 0:03:02.1]} 5. Nc3 {[%clk 0:03:00.2]}
5... Nc6 {[%clk 0:03:02.7]} 6. Ndb5 {[%clk 0:02:59]} 6... d6 {[%clk 0:03:02.8]}
7. Bf4 {[%clk 0:02:59]} 7... e5 {[%clk 0:03:03.3]} 8. Bg5 {[%clk 0:02:59.7]}
8... a6 {[%clk 0:03:03.8]} 9. Na3 {[%clk 0:03:00.1]} 9... Be6 {[%clk 0:03:04.4]}
10. Nc4 {[%clk 0:02:55]} 10... Rb8 {[%clk 0:03:04.6]} 11. g3 {[%clk 0:02:40.7]}
11... Nd4 {[%clk 0:02:56.6]} 12. Ne3 {[%clk 0:02:21.8]} 12... Be7 {[%clk
0:02:56.4]} 13. Bxf6 {[%clk 0:02:19.7]} 13... Bxf6 {[%clk 0:02:57.3]} 14. h4
{[%clk 0:02:17.8]} 14... Rc8 {[%clk 0:02:50.9]} 15. Bh3 {[%clk 0:02:07.3]} 15...
O-O {[%clk 0:02:42]} 16. Kf1 {[%clk 0:02:01.6]} 16... Bxh3+ {[%clk 0:02:27.6]}
17. Rxh3 {[%clk 0:02:00.7]} 17... Qd7 {[%clk 0:02:27.9]} 18. Kg2 {[%clk
0:01:59.1]} 18... Bd8 {[%clk 0:02:27]} 19. Ncd5 {[%clk 0:01:53.6]} 19... f5
{[%clk 0:02:22.9]} 20. c3 {[%clk 0:01:27.2]} 20... f4 {[%clk 0:02:22.9]} 21.
gxf4 {[%clk 0:01:06.4]} 21... exf4 {[%clk 0:02:23]} 22. Qxd4 {[%clk 0:00:54.1]}
22... fxe3 {[%clk 0:02:22]} 23. Nxe3 {[%clk 0:00:44.8]} 23... Kh8 {[%clk
0:02:06.5]} 24. Rd1 {[%clk 0:00:43.6]} 24... Qf7 {[%clk 0:02:02.2]} 25. Nf5
{[%clk 0:00:39.4]} 25... Bf6 {[%clk 0:02:01.3]} 26. Qe3 {[%clk 0:00:27.4]} 26...
Qxa2 {[%clk 0:01:51.9]} 27. Nxd6 {[%clk 0:00:24.5]} 27... Rcd8 {[%clk
0:01:52.3]} 28. e5 {[%clk 0:00:23.5]} 28... Be7 {[%clk 0:01:50.1]} 29. Rf3
{[%clk 0:00:20.3]} 29... Qe6 {[%clk 0:01:40.3]} 30. Rd4 {[%clk 0:00:12.9]} 30...
Kg8 {[%clk 0:01:22.6]} 31. Rxf8+ {[%clk 0:00:12.2]} 31... Rxf8 {[%clk
0:01:23.5]} 32. Qe4 {[%clk 0:00:09.2]} 32... b5 {[%clk 0:01:07.8]} 33. Qd5
{[%clk 0:00:08]} 33... Qxd5+ {[%clk 0:01:08.2]} 34. Rxd5 {[%clk 0:00:08.9]}
34... Bxh4 {[%clk 0:01:09.1]} 35. Ne4 {[%clk 0:00:07.8]} 35... Kf7 {[%clk
0:00:51.8]} 36. Rd6 {[%clk 0:00:07.1]} 36... a5 {[%clk 0:00:42.6]} 37. Rb6
{[%clk 0:00:06.9]} 37... b4 {[%clk 0:00:43]} 38. cxb4 {[%clk 0:00:06.8]} 38...
axb4 {[%clk 0:00:43.9]} 39. Rxb4 {[%clk 0:00:07.1]} 39... Kg6 {[%clk 0:00:32.4]}
40. Nd6 {[%clk 0:00:04]} 40... Be7 {[%clk 0:00:13.6]} 41. Rg4+ {[%clk
0:00:03.8]} 41... Kh6 {[%clk 0:00:13.8]} 42. Rd4 {[%clk 0:00:02.6]} 42... Rb8
{[%clk 0:00:11.2]} 43. b4 {[%clk 0:00:01.8]} 43... Kg6 {[%clk 0:00:10.9]} 44. f4
{[%clk 0:00:02.2]} 44... h5 {[%clk 0:00:10.2]} 45. Kf3 {[%clk 0:00:03.1]} 45...
h4 {[%clk 0:00:10.2]} 46. Ke4 {[%clk 0:00:04]} 46... h3 {[%clk 0:00:10.3]} 47.
f5+ {[%clk 0:00:04.9]} 47... Kg5 {[%clk 0:00:10.7]} 48. Rd3 {[%clk 0:00:05.8]}
48... Kg4 {[%clk 0:00:11.1]} 49. Rd2 {[%clk 0:00:05.5]} 49... Rxb4+ {[%clk
0:00:10.9]} 50. Kd5 {[%clk 0:00:05.1]} 50... Rb3 {[%clk 0:00:06.8]} 51. Ke6
{[%clk 0:00:05.4]} 51... Bg5 {[%clk 0:00:06.5]} 52. f6 {[%clk 0:00:05.8]} 52...
gxf6 {[%clk 0:00:04.7]} 53. Rd4+ {[%clk 0:00:05.1]} 53... Bf4 {[%clk 0:00:03.9]}
54. exf6 {[%clk 0:00:06]} 54... h2 {[%clk 0:00:04.3]} 55. f7 {[%clk 0:00:06.5]}
55... Rb8 {[%clk 0:00:04.7]} 56. Ne8 {[%clk 0:00:06.2]} 56... h1=Q {[%clk
0:00:04.8]} 57. Rxf4+ {[%clk 0:00:06.4]} 57... Kxf4 {[%clk 0:00:04.5]} 58. f8=Q+
{[%clk 0:00:06.8]} 58... Ke3 {[%clk 0:00:05.4]} 59. Qa3+ {[%clk 0:00:06.1]}
59... Kf2 {[%clk 0:00:04.7]} 60. Qc5+ {[%clk 0:00:05.6]} 60... Kg3 {[%clk
0:00:04.5]} 61. Qe5+ {[%clk 0:00:05.5]} 61... Kg2 {[%clk 0:00:03.9]} 62. Qxb8
{[%clk 0:00:06]} 62... Qh3+ {[%clk 0:00:04.3]} 63. Ke7 {[%clk 0:00:06.1]} 63...
Qh4+ {[%clk 0:00:04.3]} 64. Nf6 {[%clk 0:00:05.7]} 64... Qe1+ {[%clk 0:00:04.4]}
65. Kf7 {[%clk 0:00:05.9]} 65... Qe2 {[%clk 0:00:03.8]} 66. Qb7+ {[%clk
0:00:06.2]} 66... Qf3 {[%clk 0:00:04.2]} 67. Qb2+ {[%clk 0:00:06.8]} 67... Qf2
{[%clk 0:00:04.7]} 68. Qe5 {[%clk 0:00:07.2]} 68... Qf3 {[%clk 0:00:05.6]} 69.
Qg5+ {[%clk 0:00:07.3]} 69... Qg3 {[%clk 0:00:05.8]} 70. Qd5+ {[%clk 0:00:07.4]}
70... Qf3 {[%clk 0:00:06.3]} 71. Qd2+ {[%clk 0:00:07.8]} 71... Qf2 {[%clk
0:00:06.6]} 72. Qg5+ {[%clk 0:00:08.3]} 72... Qg3 {[%clk 0:00:07.1]} 73. Qc5
{[%clk 0:00:08.5]} 73... Qf3 {[%clk 0:00:07.2]} 74. Qc2+ {[%clk 0:00:08.6]}
74... Qf2 {[%clk 0:00:07.3]} 75. Qb1 {[%clk 0:00:09.1]} 75... Qf1 {[%clk
0:00:07.3]} 76. Qg6+ {[%clk 0:00:08.9]} 76... Kh1 {[%clk 0:00:06.8]} 77. Qh5+
{[%clk 0:00:08.7]} 77... Kg1 {[%clk 0:00:06.7]} 78. Qg4+ {[%clk 0:00:07.4]}
78... Qg2 {[%clk 0:00:07.1]} 79. Qd4+ {[%clk 0:00:07.4]} 79... Qf2 {[%clk
0:00:07.5]} 80. Qd1+ {[%clk 0:00:07.9]} 80... Qf1 {[%clk 0:00:07.9]} 81. Qh5
{[%clk 0:00:07.9]} 81... Qf2 {[%clk 0:00:07.6]} 82. Qg4+ {[%clk 0:00:07.6]}
82... Qg2 {[%clk 0:00:08]} 83. Qf5 {[%clk 0:00:07.9]} 83... Qf2 {[%clk
0:00:08.3]} 84. Qe5 {[%clk 0:00:08.2]} 84... Kg2 {[%clk 0:00:08.6]} 85. Ke6
{[%clk 0:00:08.2]} 85... Qb6+ {[%clk 0:00:08.6]} 86. Kf5 {[%clk 0:00:08.4]}
86... Qf2+ {[%clk 0:00:08.8]} 87. Kg6 {[%clk 0:00:08.6]} 87... Qg3+ {[%clk
0:00:08.9]} 88. Qg5 {[%clk 0:00:07.5]} 88... Qxg5+ {[%clk 0:00:08.8]} 89. Kxg5
{[%clk 0:00:08.4]} 1/2-1/2

[Event "*** Titled Tuesday Blitz"]
[Site "Chess.com"]
[Date "2020.05.26"]
[Round "7"]
[White "Aleksandar-Topalov"]
[Black "Rodalquilar"]
[Result "0-1"]
[WhiteElo "2385"]
[BlackElo "2632"]
[TimeControl "180+1"]
[EndTime "11:23:24 PDT"]
[Termination "Rodalquilar won by resignation"]

1. b3 {[%clk 0:03:00.9]} 1... d5 {[%clk 0:02:58.9]} 2. Bb2 {[%clk 0:03:00.8]}
2... Bf5 {[%clk 0:02:59.6]} 3. Nf3 {[%clk 0:03:00.6]} 3... e6 {[%clk 0:03:00.2]}
4. g3 {[%clk 0:03:00.9]} 4... Nf6 {[%clk 0:03:00.7]} 5. Bg2 {[%clk 0:03:01.3]}
5... Be7 {[%clk 0:03:01.3]} 6. O-O {[%clk 0:03:01.9]} 6... O-O {[%clk
0:03:01.8]} 7. d3 {[%clk 0:03:02.3]} 7... h6 {[%clk 0:03:02.2]} 8. Nbd2 {[%clk
0:03:02.2]} 8... Bh7 {[%clk 0:03:02.4]} 9. e3 {[%clk 0:03:01.2]} 9... a5 {[%clk
0:03:02.1]} 10. a3 {[%clk 0:03:01.1]} 10... Nbd7 {[%clk 0:03:02.5]} 11. Qe2
{[%clk 0:03:00.9]} 11... c6 {[%clk 0:03:01.3]} 12. e4 {[%clk 0:03:01.2]} 12...
Qb6 {[%clk 0:02:58.3]} 13. Rab1 {[%clk 0:02:57.3]} 13... Rfd8 {[%clk 0:02:57.7]}
14. Kh1 {[%clk 0:02:56.6]} 14... Rac8 {[%clk 0:02:57.8]} 15. Ng1 {[%clk
0:02:55.3]} 15... Bf8 {[%clk 0:02:56.6]} 16. f4 {[%clk 0:02:54.6]} 16... dxe4
{[%clk 0:02:51.7]} 17. Nxe4 {[%clk 0:02:53.7]} 17... Nxe4 {[%clk 0:02:46.4]} 18.
Bxe4 {[%clk 0:02:52.9]} 18... Bc5 {[%clk 0:02:33.4]} 19. Bxh7+ {[%clk
0:02:49.7]} 19... Kxh7 {[%clk 0:02:34.3]} 20. Nf3 {[%clk 0:02:49.1]} 20... Kg8
{[%clk 0:02:31.3]} 21. a4 {[%clk 0:02:41.1]} 21... Be7 {[%clk 0:02:30.9]} 22. f5
{[%clk 0:02:37.7]} 22... Nf8 {[%clk 0:02:26.9]} 23. Ne5 {[%clk 0:02:29.1]} 23...
c5 {[%clk 0:01:33.6]} 24. Nc4 {[%clk 0:02:22.3]} 24... Qc6+ {[%clk 0:01:33.3]}
25. Kg1 {[%clk 0:02:18.3]} 25... f6 {[%clk 0:00:56.5]} 26. fxe6 {[%clk
0:02:12.8]} 26... b6 {[%clk 0:00:46]} 27. Rbe1 {[%clk 0:02:07.6]} 27... Re8
{[%clk 0:00:46.5]} 28. Qg4 {[%clk 0:02:04.5]} 28... Kh8 {[%clk 0:00:35.3]} 29.
Re2 {[%clk 0:02:01.2]} 29... Rcd8 {[%clk 0:00:32.1]} 30. Qh5 {[%clk 0:01:56]}
30... Nxe6 {[%clk 0:00:23.5]} 31. h4 {[%clk 0:01:26.7]} 31... Bf8 {[%clk
0:00:12.9]} 32. Rfe1 {[%clk 0:01:25.1]} 32... Nc7 {[%clk 0:00:13]} 33. Rxe8
{[%clk 0:01:16.8]} 33... Nxe8 {[%clk 0:00:12.8]} 34. Kf2 {[%clk 0:00:59.1]}
34... Nd6 {[%clk 0:00:11.7]} 35. Na3 {[%clk 0:00:52.3]} 35... Nc8 {[%clk
0:00:09]} 36. Qf3 {[%clk 0:00:46.9]} 36... Qd7 {[%clk 0:00:08]} 37. Nc4 {[%clk
0:00:45.5]} 37... Qc7 {[%clk 0:00:07.6]} 38. Qf5 {[%clk 0:00:35]} 38... Nd6
{[%clk 0:00:07.8]} 39. Qf4 {[%clk 0:00:33.2]} 39... Qc6 {[%clk 0:00:06.7]} 40.
Na3 {[%clk 0:00:29]} 40... Nf7 {[%clk 0:00:05.4]} 41. Qf3 {[%clk 0:00:24.6]}
41... Qc7 {[%clk 0:00:05.1]} 42. Nc4 {[%clk 0:00:24.6]} 42... Bd6 {[%clk
0:00:04]} 43. Qg4 {[%clk 0:00:17.7]} 43... Ne5 {[%clk 0:00:04.1]} 44. Bxe5
{[%clk 0:00:17.2]} 44... Bxe5 {[%clk 0:00:05]} 45. Nxe5 {[%clk 0:00:16.6]} 45...
fxe5 {[%clk 0:00:05.9]} 46. Kg2 {[%clk 0:00:15.9]} 46... Re8 {[%clk 0:00:05.8]}
47. Qf5 {[%clk 0:00:14.7]} 47... Qd6 {[%clk 0:00:06]} 48. Qe4 {[%clk 0:00:14.2]}
48... Kg8 {[%clk 0:00:05.8]} 49. Qc4+ {[%clk 0:00:13.7]} 49... Kh8 {[%clk
0:00:05.2]} 50. Re4 {[%clk 0:00:14.3]} 50... Re7 {[%clk 0:00:05.5]} 51. Qa6
{[%clk 0:00:12.9]} 51... Qf6 {[%clk 0:00:05.2]} 52. Qc8+ {[%clk 0:00:12.4]}
52... Kh7 {[%clk 0:00:05.7]} 53. Qg4 {[%clk 0:00:12.5]} 53... Rf7 {[%clk
0:00:06.2]} 54. Qe2 {[%clk 0:00:12.8]} 54... Re7 {[%clk 0:00:06.2]} 55. c3
{[%clk 0:00:12.9]} 55... Qd6 {[%clk 0:00:06.1]} 56. d4 {[%clk 0:00:13.2]} 56...
cxd4 {[%clk 0:00:06.5]} 57. cxd4 {[%clk 0:00:13.6]} 57... Qd5 {[%clk 0:00:07]}
58. dxe5 {[%clk 0:00:13.5]} 58... Rxe5 {[%clk 0:00:07.1]} 59. Kf3 {[%clk
0:00:14.4]} 59... Qxb3+ {[%clk 0:00:07.2]} 60. Qe3 {[%clk 0:00:14.7]} 60...
Qxe3+ {[%clk 0:00:06.9]} 61. Kxe3 {[%clk 0:00:14.9]} 61... Rxe4+ {[%clk
0:00:07.4]} 62. Kxe4 {[%clk 0:00:15.4]} 62... Kg6 {[%clk 0:00:08.3]} 63. Kd5
{[%clk 0:00:15.4]} 63... Kf5 {[%clk 0:00:07.3]} 64. Kc6 {[%clk 0:00:15.6]} 64...
Kg4 {[%clk 0:00:08.2]} 65. Kxb6 {[%clk 0:00:15.9]} 65... Kxg3 {[%clk 0:00:09.1]}
66. Kxa5 {[%clk 0:00:16.6]} 66... Kxh4 {[%clk 0:00:10]} 67. Kb5 {[%clk
0:00:16.8]} 67... g5 {[%clk 0:00:10.9]} 68. a5 {[%clk 0:00:17.5]} 68... g4
{[%clk 0:00:11.8]} 69. a6 {[%clk 0:00:18.2]} 69... g3 {[%clk 0:00:12.7]} 70. a7
{[%clk 0:00:18.8]} 70... g2 {[%clk 0:00:13.6]} 71. a8=Q {[%clk 0:00:19.4]} 71...
g1=Q {[%clk 0:00:14.5]} 72. Qe4+ {[%clk 0:00:16.9]} 72... Qg4 {[%clk 0:00:13.2]}
73. Qe1+ {[%clk 0:00:16.6]} 73... Kh5 {[%clk 0:00:12.6]} 74. Qe8+ {[%clk
0:00:16.1]} 74... Kg5 {[%clk 0:00:12.5]} 75. Qe7+ {[%clk 0:00:15.2]} 75... Kg6
{[%clk 0:00:12.2]} 76. Qe8+ {[%clk 0:00:15.1]} 76... Kf5 {[%clk 0:00:08.1]} 77.
Qd7+ {[%clk 0:00:14.7]} 77... Kg5 {[%clk 0:00:08.2]} 78. Qe7+ {[%clk 0:00:15.2]}
78... Kh5 {[%clk 0:00:08.3]} 79. Qf7+ {[%clk 0:00:14.3]} 79... Kh4 {[%clk
0:00:08.2]} 80. Qf2+ {[%clk 0:00:13.7]} 80... Qg3 {[%clk 0:00:08.1]} 81. Qf8
{[%clk 0:00:10.8]} 81... h5 {[%clk 0:00:07.8]} 82. Kc4 {[%clk 0:00:07.5]} 82...
Kh3 {[%clk 0:00:07.4]} 83. Qf1+ {[%clk 0:00:06.4]} 83... Kg4 {[%clk 0:00:07.8]}
84. Qe2+ {[%clk 0:00:05.6]} 84... Qf3 {[%clk 0:00:08.3]} 85. Qe6+ {[%clk
0:00:05.1]} 85... Kg3 {[%clk 0:00:08.3]} 86. Qe1+ {[%clk 0:00:04.7]} 86... Kg2
{[%clk 0:00:08.3]} 87. Qd2+ {[%clk 0:00:04.7]} 87... Kf1 {[%clk 0:00:08.8]} 88.
Qg5 {[%clk 0:00:02.3]} 88... Qg4+ {[%clk 0:00:08.1]} 0-1

[Event "*** Titled Tuesday Blitz"]
[Site "Chess.com"]
[Date "2020.05.26"]
[Round "7"]
[White "Kirill_Klukin"]
[Black "RATNAKARAN"]
[Result "1-0"]
[WhiteElo "2699"]
[BlackElo "2543"]
[TimeControl "180+1"]
[EndTime "11:24:37 PDT"]
[Termination "Kirill_Klukin won by resignation"]

1. d4 {[%clk 0:03:00.9]} 1... Nf6 {[%clk 0:02:59.1]} 2. Nf3 {[%clk 0:03:00.9]}
2... c5 {[%clk 0:02:57.9]} 3. e3 {[%clk 0:02:58]} 3... b6 {[%clk 0:02:56.7]} 4.
Bd3 {[%clk 0:02:57.8]} 4... Bb7 {[%clk 0:02:57.1]} 5. O-O {[%clk 0:02:58.3]}
5... cxd4 {[%clk 0:02:55.5]} 6. exd4 {[%clk 0:02:57.5]} 6... e6 {[%clk
0:02:56.2]} 7. c4 {[%clk 0:02:50.9]} 7... Be7 {[%clk 0:02:55.4]} 8. Nc3 {[%clk
0:02:50.8]} 8... O-O {[%clk 0:02:54.9]} 9. d5 {[%clk 0:02:50.6]} 9... d6 {[%clk
0:02:54.7]} 10. dxe6 {[%clk 0:02:47]} 10... fxe6 {[%clk 0:02:54.9]} 11. Ng5
{[%clk 0:02:39.6]} 11... Qd7 {[%clk 0:02:53.6]} 12. Qe2 {[%clk 0:02:35.7]} 12...
e5 {[%clk 0:02:53.1]} 13. Rd1 {[%clk 0:02:32.2]} 13... Nc6 {[%clk 0:02:51.8]}
14. Be3 {[%clk 0:02:25.3]} 14... Rae8 {[%clk 0:02:49.9]} 15. Qc2 {[%clk
0:02:16.2]} 15... h6 {[%clk 0:02:49.1]} 16. Bf5 {[%clk 0:02:09.4]} 16... Nb4
{[%clk 0:02:35.3]} 17. Bxd7 {[%clk 0:01:50.2]} 17... Nxc2 {[%clk 0:02:35.2]} 18.
Be6+ {[%clk 0:01:28.5]} 18... Kh8 {[%clk 0:02:31.4]} 19. Nf7+ {[%clk 0:01:28.5]}
19... Rxf7 {[%clk 0:02:24.8]} 20. Bxf7 {[%clk 0:01:28.3]} 20... Rf8 {[%clk
0:02:25.1]} 21. Bg6 {[%clk 0:01:26.4]} 21... Nxa1 {[%clk 0:02:24.1]} 22. Rxa1
{[%clk 0:01:22.3]} 22... d5 {[%clk 0:02:24]} 23. cxd5 {[%clk 0:01:16.2]} 23...
Nxd5 {[%clk 0:02:24.9]} 24. Nxd5 {[%clk 0:01:16.2]} 24... Bxd5 {[%clk 0:02:24]}
25. b3 {[%clk 0:01:14.7]} 25... Rf6 {[%clk 0:02:10.8]} 26. Be8 {[%clk
0:01:08.6]} 26... Bc6 {[%clk 0:02:07.4]} 27. Bh5 {[%clk 0:01:06.4]} 27... Ba3
{[%clk 0:01:59.2]} 28. Rd1 {[%clk 0:01:04.4]} 28... Rd6 {[%clk 0:01:59.3]} 29.
h3 {[%clk 0:01:00.6]} 29... Kg8 {[%clk 0:01:55.5]} 30. Rxd6 {[%clk 0:00:55.4]}
30... Bxd6 {[%clk 0:01:53.8]} 31. Kf1 {[%clk 0:00:49.6]} 31... Kf8 {[%clk
0:01:52.9]} 32. Be2 {[%clk 0:00:44.3]} 32... Ke7 {[%clk 0:01:52.2]} 33. f3
{[%clk 0:00:44.2]} 33... Ba3 {[%clk 0:01:50.3]} 34. Ke1 {[%clk 0:00:42.9]} 34...
Kd6 {[%clk 0:01:50.6]} 35. Kd2 {[%clk 0:00:42.4]} 35... Bb4+ {[%clk 0:01:48.7]}
36. Kc2 {[%clk 0:00:42.5]} 36... Bc5 {[%clk 0:01:48.7]} 37. Bd2 {[%clk
0:00:38.9]} 37... a5 {[%clk 0:01:47.2]} 38. Bc3 {[%clk 0:00:38.4]} 38... Bd4
{[%clk 0:01:46.2]} 39. Bd3 {[%clk 0:00:36]} 39... Bxc3 {[%clk 0:01:42.2]} 40.
Kxc3 {[%clk 0:00:36.9]} 40... Kc5 {[%clk 0:01:41.7]} 41. a3 {[%clk 0:00:37.1]}
41... g5 {[%clk 0:01:30.6]} 42. b4+ {[%clk 0:00:36.9]} 42... axb4+ {[%clk
0:01:30.8]} 43. axb4+ {[%clk 0:00:37.5]} 43... Kd6 {[%clk 0:01:31]} 44. Kd2
{[%clk 0:00:38]} 44... Bd5 {[%clk 0:01:27.8]} 45. Ke3 {[%clk 0:00:38.3]} 45...
Ke6 {[%clk 0:01:26.4]} 46. Bh7 {[%clk 0:00:37.3]} 46... Kd6 {[%clk 0:01:25]} 47.
Be4 {[%clk 0:00:34.3]} 47... Bc4 {[%clk 0:01:24.9]} 48. Bg6 {[%clk 0:00:31.7]}
48... Bf1 {[%clk 0:01:24.1]} 49. Kf2 {[%clk 0:00:30.6]} 49... Bb5 {[%clk
0:01:21.7]} 50. Ke3 {[%clk 0:00:30.4]} 50... Bf1 {[%clk 0:01:21.4]} 51. Kf2
{[%clk 0:00:30.2]} 51... Bc4 {[%clk 0:01:21.3]} 52. Bh7 {[%clk 0:00:29]} 52...
Ba6 {[%clk 0:01:17]} 53. Be4 {[%clk 0:00:27.8]} 53... Bb5 {[%clk 0:01:14.3]} 54.
Ke3 {[%clk 0:00:27]} 54... Bf1 {[%clk 0:01:13.8]} 55. Kf2 {[%clk 0:00:27.1]}
55... Bb5 {[%clk 0:01:12.5]} 56. Ke3 {[%clk 0:00:26.9]} 56... Bf1 {[%clk
0:01:12.4]} 57. Kf2 {[%clk 0:00:26.9]} 57... Bc4 {[%clk 0:01:10.4]} 58. g3
{[%clk 0:00:27.1]} 58... Be6 {[%clk 0:01:09.6]} 59. h4 {[%clk 0:00:26.2]} 59...
gxh4 {[%clk 0:01:08.5]} 60. gxh4 {[%clk 0:00:27.1]} 60... Bd5 {[%clk 0:01:06.7]}
61. Ke3 {[%clk 0:00:25.7]} 61... Ke6 {[%clk 0:01:01.4]} 62. Bh7 {[%clk
0:00:18.3]} 62... Bc6 {[%clk 0:00:59.1]} 63. Be4 {[%clk 0:00:18]} 63... Ba4
{[%clk 0:00:57.1]} 64. Bb7 {[%clk 0:00:15.3]} 64... Kf5 {[%clk 0:00:55.9]} 65.
Be4+ {[%clk 0:00:15]} 65... Kf6 {[%clk 0:00:55.7]} 66. Bd3 {[%clk 0:00:15.3]}
66... Bc6 {[%clk 0:00:54.1]} 67. f4 {[%clk 0:00:15.1]} 67... Bd5 {[%clk
0:00:51.2]} 68. Bc2 {[%clk 0:00:14.7]} 68... Bg8 {[%clk 0:00:46.6]} 69. Be4
{[%clk 0:00:13.9]} 69... Be6 {[%clk 0:00:44.2]} 70. Bd3 {[%clk 0:00:14.1]} 70...
Bf5 {[%clk 0:00:43.3]} 71. Be4 {[%clk 0:00:14.2]} 71... Bg4 {[%clk 0:00:32]} 72.
Bd3 {[%clk 0:00:14]} 72... Bh3 {[%clk 0:00:31.5]} 73. Be4 {[%clk 0:00:13.9]}
73... Ke6 {[%clk 0:00:29.4]} 74. Bd3 {[%clk 0:00:13.7]} 74... Kd5 {[%clk
0:00:27.9]} 75. f5 {[%clk 0:00:13.8]} 75... Kd6 {[%clk 0:00:25.6]} 76. Ke4
{[%clk 0:00:13.6]} 76... Bg2+ {[%clk 0:00:24.8]} 77. Ke3 {[%clk 0:00:13.7]}
77... Ke7 {[%clk 0:00:25]} 78. Bc4 {[%clk 0:00:13.8]} 78... Kf6 {[%clk 0:00:24]}
79. Be6 {[%clk 0:00:14]} 79... Bb7 {[%clk 0:00:21.3]} 80. Bd7 {[%clk 0:00:13.4]}
80... Bd5 {[%clk 0:00:19.8]} 81. Bc8 {[%clk 0:00:13.3]} 81... Ba2 {[%clk
0:00:19.7]} 82. Bd7 {[%clk 0:00:13.2]} 82... Bb1 {[%clk 0:00:20]} 83. Bc6 {[%clk
0:00:10]} 83... Bxf5 {[%clk 0:00:20.7]} 84. Bd5 {[%clk 0:00:10.3]} 84... Be6
{[%clk 0:00:20.9]} 85. Be4 {[%clk 0:00:10.6]} 85... Ke7 {[%clk 0:00:21.2]} 86.
Bf3 {[%clk 0:00:10.6]} 86... Kd6 {[%clk 0:00:22.1]} 87. Be2 {[%clk 0:00:10.6]}
87... Bd5 {[%clk 0:00:23]} 88. Bd3 {[%clk 0:00:10.7]} 88... Kc6 {[%clk
0:00:22.5]} 89. Be2 {[%clk 0:00:11]} 89... Bg2 {[%clk 0:00:22.1]} 90. Bd3 {[%clk
0:00:10.9]} 90... Kd5 {[%clk 0:00:22.3]} 91. Be2 {[%clk 0:00:10.4]} 91... Be4
{[%clk 0:00:21.3]} 92. Ba6 {[%clk 0:00:10.3]} 92... Bf5 {[%clk 0:00:20.6]} 93.
Be2 {[%clk 0:00:09.8]} 93... e4 {[%clk 0:00:20.7]} 94. Ba6 {[%clk 0:00:09.7]}
94... Ke5 {[%clk 0:00:21]} 95. Bb7 {[%clk 0:00:09.9]} 95... Bg6 {[%clk
0:00:21.2]} 96. Bc6 {[%clk 0:00:10.2]} 96... Bh7 {[%clk 0:00:20.6]} 97. Bb7
{[%clk 0:00:10.4]} 97... Bf5 {[%clk 0:00:20.9]} 98. Ba8 {[%clk 0:00:10.2]} 98...
Bg6 {[%clk 0:00:20.5]} 99. Bb7 {[%clk 0:00:10.4]} 99... Bf7 {[%clk 0:00:20.4]}
100. Bxe4 {[%clk 0:00:10.1]} 100... Bd5 {[%clk 0:00:20.7]} 101. Bd3 {[%clk
0:00:10]} 101... Bc6 {[%clk 0:00:20.2]} 102. Be2 {[%clk 0:00:10.2]} 102... Bb7
{[%clk 0:00:19.9]} 103. Bd3 {[%clk 0:00:10.5]} 103... Bc8 {[%clk 0:00:20.2]}
104. Be2 {[%clk 0:00:10.8]} 104... Kd5 {[%clk 0:00:20.7]} 105. Bd3 {[%clk
0:00:10.6]} 105... Bd7 {[%clk 0:00:21.1]} 106. Be2 {[%clk 0:00:10.4]} 106... Bf5
{[%clk 0:00:21.3]} 107. Ba6 {[%clk 0:00:09.6]} 107... Bc2 {[%clk 0:00:21.2]}
108. Be2 {[%clk 0:00:09.5]} 108... Bb3 {[%clk 0:00:21.4]} 109. Kf4 {[%clk
0:00:09.3]} 109... Kd4 {[%clk 0:00:21.3]} 110. Kf5 {[%clk 0:00:09.4]} 110...
Bc2+ {[%clk 0:00:19.5]} 111. Kf6 {[%clk 0:00:09.6]} 111... Kc3 {[%clk
0:00:19.7]} 112. b5 {[%clk 0:00:09.7]} 112... Kb4 {[%clk 0:00:20]} 113. Kg7
{[%clk 0:00:09.8]} 113... Ba4 {[%clk 0:00:20]} 114. Kxh6 {[%clk 0:00:09.8]}
114... Bxb5 {[%clk 0:00:20.4]} 115. Bxb5 {[%clk 0:00:10.3]} 115... Kxb5 {[%clk
0:00:20.5]} 116. Kg5 {[%clk 0:00:10.7]} 116... Kc4 {[%clk 0:00:20.4]} 117. h5
{[%clk 0:00:11.6]} 117... b5 {[%clk 0:00:21.2]} 118. h6 {[%clk 0:00:12.5]}
118... b4 {[%clk 0:00:22.1]} 119. h7 {[%clk 0:00:13.4]} 119... b3 {[%clk
0:00:23]} 120. h8=Q {[%clk 0:00:14]} 120... Kd3 {[%clk 0:00:22.4]} 121. Qb2
{[%clk 0:00:14.3]} 121... Kc4 {[%clk 0:00:22.8]} 122. Kf4 {[%clk 0:00:14.5]} 1-0